bitfinex/quotes_ETHUSD_20260107
["timestamp","ask_amount","ask_price","bid_price","bid_amount"]
[1767744002708,0.97750329,3292.4,3291.7,0.95433623]
[1767744002910,0.03796737,3292.3,3291.7,0.95433623]
[1767744004012,0.002,3292.4,3291.7,0.95433623]
[1767744004719,0.03996622,3292.4,3291.7,0.95433623]
[1767744005224,1.02996872,3292.4,3291.7,0.001]
[1767744005430,0.9900025,3292.2,3291.7,0.001]
[1767744005598,0.9900025,3292.0,3291.7,0.001]
[1767744005922,1.81897449,3291.9,3290.9,0.001]
[1767744006093,0.9900025,3291.8,3290.9,0.001]
[1767744006821,0.9900025,3291.6,3290.9,0.001]
[1767744007326,4.02813101,3291.5,3290.9,0.001]
[1767744007533,7.06625952,3291.5,3290.9,0.001]
[1767744007738,0.70662595,3291.4,3290.9,0.001]
[1767744008313,7.06625952,3291.5,3290.9,0.001]
[1767744008520,7.06625952,3291.5,3291.2,0.001]
[1767744009340,4.02813101,3291.5,3291.2,0.001]
[1767744009834,8.71813698,3295.4,3291.6,0.99777869]
[1767744009835,3.2194977,3292.3,3291.6,0.99777869]
[1767744010014,1.02797103,3292.2,3291.5,0.01874972]
[1767744010216,0.03796853,3292.2,3291.6,0.99777869]
[1767744010737,3.21955022,3292.3,3291.6,0.99777869]
[1767744010938,0.03796853,3292.2,3291.5,0.01874972]
[1767744011111,0.76666599,3292.2,3291.5,0.01874972]
[1767744011313,3.0375748,3292.1,3291.5,0.01874972]
[1767744011607,0.9900025,3292.0,3291.5,0.01874972]
[1767744011812,0.8536025,3292.0,3291.5,0.01674972]
[1767744012035,3.0375748,3292.1,3291.5,0.01674972]
[1767744013113,0.9900025,3292.0,3291.5,0.01674972]
[1767744013439,3.03775934,3291.9,3291.5,0.01474972]
[1767744013813,4.02769743,3292.0,3291.5,0.01474972]
[1767744014014,0.792,3292.0,3291.5,0.01474972]
[1767744014720,0.792,3292.0,3291.5,1.01252841]
[1767744014925,3.86749402,3292.2,3291.5,1.01252841]
[1767744015739,6.90502927,3292.2,3291.5,1.01252841]
[1767744015938,0.69050293,3292.1,3291.5,0.01474972]
[1767744016244,1.68050543,3292.1,3291.5,0.01474972]
[1767744016714,1.02797333,3292.0,3291.2,0.001]
[1767744017819,0.9900025,3291.8,3291.2,0.001]
[1767744018035,0.9900025,3291.6,3291.2,0.001]
[1767744018234,0.0379766,3291.5,3291.2,0.001]
[1767744019815,3.03822081,3291.4,3291.2,0.001]
[1767744021046,3.0761367,3291.5,3291.2,0.001]
[1767744021942,4.02831562,3291.3,3290.9,0.001]
[1767744022114,3.03831312,3291.3,3290.9,0.001]
[1767744022316,3.03790248,3291.8,3290.9,0.001]
[1767744022317,0.9920025,3292.4,3290.9,0.99877869]
[1767744022533,0.9900025,3292.2,3290.9,0.99877869]
[1767744022821,1.02797218,3292.1,3290.9,0.99877869]
[1767744024058,0.9900025,3291.9,3290.9,0.001]
[1767744024224,0.9900025,3291.7,3290.9,0.001]
[1767744024550,0.9900025,3291.5,3290.9,0.001]
[1767744024946,0.9900025,3291.3,3290.2,0.99777869]
[1767744025147,0.9900025,3291.1,3290.3,0.30629555]
[1767744025449,0.9900025,3291.1,3290.4,0.99777869]
[1767744026158,4.0285688,3291.1,3290.4,0.99577869]
[1767744026325,0.9900025,3291.0,3290.1,4.03718908]
[1767744026519,0.9900025,3291.1,3290.2,0.40371891]
[1767744027268,0.9900025,3291.1,3290.2,3.44302989]
[1767744027425,0.9900025,3291.1,3290.2,0.40371891]
[1767744027621,0.9900025,3291.1,3289.9,0.99777869]
[1767744027836,0.9900025,3291.1,3289.8,0.81869626]
[1767744028156,0.9900025,3290.9,3289.8,0.795]
[1767744028656,0.9900025,3290.9,3289.8,3.0396872]
[1767744028849,0.9900025,3290.9,3289.9,0.30396872]
[1767744029060,6.07718018,3291.0,3290.0,0.99777869]
[1767744029946,7.06718268,3291.0,3290.0,0.99777869]
[1767744030922,0.9900025,3290.9,3290.0,0.99777869]
[1767744031864,0.9900025,3290.9,3289.3,3.06483408]
[1767744031865,0.9900025,3290.9,3289.4,0.95976824]
[1767744032040,0.98263803,3290.7,3289.4,0.95976824]
[1767744032231,1.01057728,3290.8,3289.4,0.95976824]
[1767744032232,0.792,3290.6,3289.4,0.95976824]
[1767744032432,3.03905181,3290.5,3289.5,0.98347244]
[1767744032752,0.98263803,3290.4,3289.3,0.001]
[1767744032950,0.98263803,3290.4,3289.4,0.30411869]
[1767744033523,0.98263803,3290.4,3289.3,0.001]
[1767744034356,6.07810362,3290.5,3289.3,0.96076824]
[1767744034357,7.06074165,3290.5,3289.3,0.96076824]
[1767744036462,6.07810362,3290.5,3289.3,0.96076824]
[1767744036633,3.07703995,3290.5,3289.4,0.95976824]
[1767744036833,3.03905181,3290.5,3289.6,0.95976824]
[1767744037259,6.07810362,3290.5,3289.6,0.95976824]
[1767744037558,0.0379893,3290.4,3289.6,0.95976824]
[1767744038269,3.03905181,3290.5,3289.6,0.95976824]
[1767744038839,0.792,3290.6,3289.8,0.95976824]
[1767744039146,0.03798814,3290.5,3289.8,0.95976824]
[1767744039541,1.02062617,3290.5,3289.4,0.95976824]
[1767744040151,1.02062617,3290.5,3289.3,0.001]
[1767744040152,1.02062617,3290.5,3289.3,0.96076824]
[1767744040336,1.02062617,3290.5,3289.5,0.95976824]
[1767744040535,3.0771237,3290.5,3289.5,0.95976824]
[1767744040963,3.0771237,3290.5,3289.6,0.95976824]
[1767744041462,0.792,3290.4,3289.6,0.95976824]
[1767744041767,0.03799045,3290.3,3289.6,0.95976824]
[1767744042270,0.03799045,3290.3,3289.8,0.95976824]
[1767744044167,3.07722919,3290.3,3289.8,0.95976824]
[1767744044467,6.50339085,3290.3,3289.5,0.95976824]
[1767744044669,0.98263803,3290.2,3289.3,0.001]
[1767744044871,0.03799276,3290.1,3289.3,0.001]
[1767744045171,0.03799276,3290.1,3289.9,0.001]
[1767744045371,0.03799276,3290.1,3289.3,0.001]
[1767744045572,1.09051975,3290.1,3289.3,0.001]
[1767744046762,1.09051975,3290.1,3288.7,0.95976824]
[1767744046763,0.98263803,3289.9,3288.7,0.95976824]
[1767744047079,0.98263803,3289.7,3288.4,0.95976824]
[1767744047372,0.1774638,3289.6,3288.4,0.95976824]
[1767744048082,1.16010183,3289.6,3288.4,0.95976824]
[1767744048378,0.98263803,3289.6,3288.4,0.95976824]
[1767744048874,6.07995136,3289.5,3288.4,0.95976824]
[1767744049380,7.06258939,3289.5,3288.4,0.95976824]
[1767744049581,0.98263803,3289.4,3288.4,0.95976824]
[1767744049769,1.49825894,3289.3,3288.4,0.95976824]
[1767744049949,2.48089697,3289.3,3288.4,0.95976824]
[1767744050349,0.98263803,3289.2,3288.1,0.95976824]
[1767744050648,0.98263803,3289.2,3287.8,0.95976824]
[1767744050847,0.98263803,3289.0,3287.8,0.95976824]
[1767744051081,0.98263803,3288.8,3287.8,0.95976824]
[1767744051289,0.792,3288.7,3287.8,0.95976824]
[1767744051644,0.792,3288.7,3287.6,0.001]
[1767744051645,0.98263803,3288.6,3287.6,0.001]
[1767744053058,0.98263803,3288.4,3287.6,0.001]
[1767744053289,1.68908185,3288.3,3287.6,0.001]
[1767744053467,0.792,3288.2,3287.6,0.001]
[1767744055196,3.04127003,3288.1,3287.6,0.001]
[1767744055697,3.83321581,3288.2,3287.6,0.001]
[1767744055896,4.28718177,3288.2,3287.6,0.001]
[1767744056069,0.792,3288.1,3287.6,0.96076824]
[1767744056394,0.792,3288.1,3287.6,0.001]
[1767744056966,3.04136253,3288.0,3287.3,0.001]
[1767744057570,0.45396596,3288.2,3287.3,0.96076824]
[1767744057800,0.792,3288.1,3287.9,0.001]
[1767744058000,0.98263803,3288.6,3287.9,0.001]
[1767744058201,0.002,3288.3,3287.9,0.001]
[1767744058868,0.98463803,3288.3,3287.9,0.001]
[1767744059069,6.08235508,3288.2,3287.9,0.001]
[1767744059270,6.79285563,3288.2,3287.9,0.001]
[1767744060196,0.71050055,3288.2,3287.9,0.001]
[1767744060403,0.002,3288.3,3287.9,0.96076824]
[1767744060771,3.04308673,3288.3,3287.9,0.96076824]
[1767744061083,3.04127003,3288.1,3287.9,0.001]
[1767744061398,0.83001703,3288.0,3287.9,0.001]
[1767744061572,1.61163305,3288.0,3287.3,0.001]
[1767744061897,0.03801703,3288.0,3287.3,0.001]
[1767744062193,0.03801703,3288.0,3287.3,0.98392822]
[1767744062367,0.792,3287.9,3287.3,0.98392822]
[1767744062568,3.08111972,3288.3,3287.5,0.98292822]
[1767744062904,0.03801471,3288.2,3287.6,0.98292822]
[1767744063094,0.002,3288.3,3287.6,0.98292822]
[1767744063402,0.04001356,3288.3,3287.7,0.98292822]
[1767744064289,0.03801471,3288.2,3287.7,0.98292822]
[1767744065385,3.04118475,3288.2,3287.7,0.98292822]
[1767744065583,3.04317104,3288.3,3287.7,0.98292822]
[1767744065786,0.03801471,3288.2,3287.7,0.98292822]
[1767744066187,3.04317104,3288.3,3287.7,0.98292822]
[1767744066794,0.002,3288.3,3287.7,0.98292822]
[1767744067101,6.08423516,3288.3,3287.7,0.98292822]
[1767744067419,0.03801471,3288.2,3287.4,0.98292822]
[1767744069320,3.07920382,3288.2,3287.4,0.98292822]
[1767744069477,0.795,3288.3,3287.5,0.98292822]
[1767744069676,0.795,3288.3,3287.7,0.98292822]
[1767744069899,0.03801471,3288.2,3287.7,0.98292822]
[1767744070405,0.03801471,3288.2,3287.7,0.98392822]
[1767744071187,0.002,3287.9,3287.7,0.98392822]
[1767744076625,0.795,3288.2,3287.7,0.98392822]
[1767744076825,0.96700909,3288.1,3287.7,0.001]
[1767744077034,0.795,3288.2,3287.7,0.98392822]
[1767744078309,0.002,3288.3,3287.9,0.98292822]
[1767744079534,0.002,3288.3,3287.7,0.001]
[1767744079738,0.795,3288.3,3287.7,0.001]
[1767744079936,0.96700909,3288.1,3287.7,0.001]
[1767744080102,1.00502612,3288.0,3287.7,0.001]
[1767744082136,0.96700909,3287.8,3287.7,0.001]
[1767744082338,3.04127003,3288.1,3287.7,0.001]
[1767744082633,0.03801703,3288.0,3287.7,0.001]
[1767744082930,0.793,3288.0,3287.7,0.001]
[1767744083101,0.795,3288.3,3287.7,0.98392822]
[1767744083303,0.83301356,3288.3,3287.7,0.98392822]
[1767744083527,0.002,3287.9,3287.7,0.98392822]
[1767744084309,0.96900909,3288.2,3287.7,0.001]
[1767744085436,0.002,3288.2,3287.7,0.001]
[1767744085935,0.002,3288.2,3287.8,0.98292822]
[1767744086142,0.002,3288.3,3287.8,0.98292822]
[1767744086439,0.002,3288.6,3287.9,0.98292822]
[1767744086614,0.002,3288.6,3287.8,6.10680035]
[1767744086615,0.96700909,3288.9,3287.8,6.08305288]
[1767744086813,1.00501571,3288.9,3287.8,6.08305288]
[1767744087125,1.00501571,3288.9,3287.9,0.61077956]
[1767744088136,0.03800662,3288.9,3288.0,0.98292822]
[1767744088336,0.03800662,3288.9,3288.2,0.98292822]
[1767744088645,0.96700909,3288.7,3287.7,0.001]
[1767744088842,0.96700909,3288.5,3287.7,0.001]
[1767744089041,0.96700909,3288.3,3287.7,0.001]
[1767744089337,0.03801471,3288.2,3287.7,0.001]
[1767744089641,1.0050238,3288.2,3287.3,0.001]
[1767744090326,6.08272506,3288.0,3287.3,0.001]
[1767744090533,1.86780434,3287.9,3287.3,0.001]
[1767744091747,0.95534383,3287.8,3287.3,0.001]
[1767744092547,6.0832801,3287.7,3287.3,0.001]
[1767744093130,3.04164005,3287.7,3287.3,0.001]
[1767744093845,3.99698388,3287.7,3287.3,0.001]
[1767744094348,7.03862393,3287.7,3287.3,0.001]
[1767744094524,7.82558826,3287.7,3287.3,0.001]
[1767744095137,4.78394821,3287.7,3287.3,0.001]
[1767744095343,4.82196871,3287.7,3287.3,0.001]
[1767744095542,4.82196871,3287.7,3287.6,0.001]
[1767744095922,3.86662488,3287.7,3287.6,0.001]
[1767744096142,3.82860438,3287.7,3287.6,0.001]
[1767744098123,0.793,3288.1,3287.6,0.001]
[1767744098521,0.03801703,3288.0,3287.6,0.001]
[1767744099750,3.04145503,3287.9,3287.6,0.001]
[1767744100123,0.03801934,3287.8,3287.6,0.001]
[1767744100365,0.65011228,3287.8,3287.6,0.001]
[1767744100562,0.65011228,3287.8,3287.3,0.001]
[1767744101758,6.0832801,3287.7,3287.3,0.001]
[1767744101934,0.83102165,3287.6,3287.3,0.001]
[1767744102136,0.83102165,3287.6,3286.6,0.001]
[1767744102137,0.95534383,3287.5,3286.6,0.001]
[1767744102364,1.13398038,3287.4,3286.6,0.001]
[1767744103524,0.95534383,3287.4,3286.6,0.001]
[1767744103730,0.83102165,3287.6,3286.6,0.001]
[1767744104030,3.87275512,3287.6,3286.6,0.98738299]
[1767744104228,0.83102165,3287.6,3286.6,0.98738299]
[1767744104966,3.8727717,3287.6,3286.6,0.98738299]
[1767744105172,3.8727717,3287.6,3286.8,0.98638299]
[1767744108176,3.8727717,3287.6,3287.0,0.98638299]
[1767744109241,3.8727717,3287.6,3286.9,0.001]
[1767744109451,0.95534383,3287.5,3286.9,0.001]
[1767744110051,6.8765001,3287.6,3286.9,0.98738299]
[1767744110256,0.72567282,3287.5,3286.9,0.98738299]
[1767744110480,0.95534383,3287.3,3286.6,0.001]
[1767744110682,0.99336895,3287.3,3286.6,0.001]
[1767744110981,0.03802512,3287.3,3286.6,0.98738299]
[1767744111356,0.71897616,3287.3,3286.6,0.98738299]
[1767744111759,0.03802512,3287.3,3286.6,0.98738299]
[1767744112518,3.08008182,3287.3,3286.6,0.98738299]
[1767744112809,0.03802512,3287.3,3286.6,0.98738299]
[1767744113008,3.08004311,3287.3,3286.6,0.98738299]
[1767744114183,6.1220611,3287.3,3286.6,0.98738299]
[1767744114615,0.95534383,3287.2,3286.6,0.001]
[1767744115520,0.03802744,3287.1,3286.6,0.001]
[1767744115690,0.95534383,3287.1,3286.6,0.001]
[1767744116578,1.74834383,3287.1,3286.6,0.001]
[1767744117211,3.0422878,3287.0,3286.6,0.001]
[1767744117418,0.95534383,3286.9,3286.6,0.001]
[1767744117624,0.793,3287.1,3286.6,0.98738299]
[1767744118112,0.95534383,3287.8,3286.6,0.98738299]
[1767744118325,0.793,3287.5,3286.7,0.97797092]
[1767744118521,0.793,3287.5,3286.8,0.02376981]
[1767744118826,0.92154309,3287.6,3286.6,0.02477046]
[1767744118987,0.92154309,3287.9,3286.6,0.95520198]
[1767744119181,0.95956243,3287.8,3286.7,0.1751202]
[1767744119387,0.92154309,3287.6,3286.7,0.1751202]
[1767744119587,3.04164005,3287.7,3286.7,0.1751202]
[1767744119588,0.92154309,3287.4,3286.7,0.1751202]
[1767744120726,0.92154309,3287.4,3286.9,0.001]
[1767744120928,0.92154309,3287.4,3286.6,0.001]
[1767744120929,0.95956821,3287.3,3286.6,0.001]
[1767744121094,0.002,3287.0,3286.6,0.001]
[1767744121737,0.91654802,3287.0,3286.6,0.001]
[1767744121887,0.002,3287.0,3286.6,0.001]
[1767744122926,0.002,3287.0,3286.7,0.95949162]
[1767744123935,0.04002859,3287.0,3286.6,0.001]
[1767744124100,0.30441952,3286.9,3286.6,0.001]
[1767744126033,0.03803091,3286.8,3286.1,0.95949162]
[1767744126932,0.793,3286.7,3286.1,0.95949162]
[1767744127234,0.03802975,3286.9,3286.3,0.95949162]
[1767744127530,0.83102975,3286.9,3286.3,0.95949162]
[1767744128032,3.04247292,3286.8,3286.3,0.95949162]
[1767744128233,3.87343357,3286.9,3286.3,0.95949162]
[1767744128435,4.26097693,3286.9,3286.3,0.95949162]
[1767744128619,1.21857311,3286.9,3286.3,0.95949162]
[1767744128818,4.26099975,3286.9,3286.3,0.95949162]
[1767744129015,7.30342639,3286.9,3286.3,0.95949162]
[1767744129214,7.26539664,3286.9,3286.3,0.95949162]
[1767744129420,0.72673966,3286.8,3285.9,0.95949162]
[1767744129623,0.03803206,3286.7,3285.9,0.95949162]
[1767744129919,0.91454802,3286.5,3285.8,0.001]
[1767744130114,2.40753443,3286.4,3285.8,0.001]
[1767744130527,0.793,3286.4,3285.8,0.001]
[1767744130743,0.793,3286.6,3285.8,0.96049162]
[1767744131034,0.793,3286.6,3285.9,0.98328704]
[1767744131755,0.793,3286.6,3285.9,0.95949162]
[1767744132109,1.4846034,3286.6,3285.9,0.95949162]
[1767744132637,0.793,3286.6,3285.9,0.95949162]
[1767744133139,3.83566324,3286.6,3285.9,0.95949162]
[1767744133436,6.87832648,3286.6,3285.9,0.95949162]
[1767744133824,6.87832648,3286.6,3286.2,0.001]
[1767744134024,0.03803438,3286.5,3286.2,0.001]
[1767744134242,0.38756976,3286.4,3286.2,0.001]
[1767744136638,0.002,3286.9,3286.2,0.96049162]
[1767744137008,0.002,3287.3,3286.2,0.96049162]
[1767744137009,0.002,3287.3,3286.8,0.95949162]
[1767744137329,0.91654802,3287.3,3286.4,0.01875213]
[1767744138440,0.002,3287.3,3286.5,3.83875064]
[1767744138652,0.002,3287.3,3286.6,0.48169944]
[1767744138814,0.04002512,3287.3,3286.6,0.48169944]
[1767744139010,0.95457314,3287.3,3286.6,0.48169944]
[1767744139614,3.08206101,3287.3,3286.6,1.44119106]
[1767744139815,6.1240969,3287.3,3286.6,0.95949162]
[1767744140236,3.08206101,3287.3,3286.6,0.95949162]
[1767744140637,6.1240969,3287.3,3286.4,0.97824375]
[1767744140833,0.04002512,3287.3,3286.5,0.95949162]
[1767744141040,0.002,3287.3,3286.5,0.95949162]
[1767744141361,3.08203639,3287.3,3286.6,0.95949162]
[1767744141743,6.12404766,3287.3,3286.6,0.95949162]
[1767744141934,6.91704766,3287.3,3286.4,0.01875213]
[1767744142122,10.83558183,3287.3,3286.4,0.01875213]
[1767744142334,10.83558183,3287.3,3286.4,1e-08]
[1767744142523,6.08439048,3287.1,3286.4,1e-08]
[1767744142721,0.03802859,3287.0,3286.4,1e-08]
[1767744143250,3.04219524,3287.1,3286.4,0.95949163]
[1767744143917,3.04213757,3287.2,3286.4,0.95949163]
[1767744144144,0.795,3287.3,3286.5,0.95949162]
[1767744144648,0.03801818,3287.9,3287.0,0.95949162]
[1767744146742,3.04154753,3287.8,3287.0,0.95949162]
[1767744146914,0.002,3287.1,3287.0,0.95949162]
[1767744147120,0.95256852,3287.7,3286.9,3.0423216]
[1767744147358,0.95256852,3287.7,3287.0,0.30423216]
[1767744147646,0.95256852,3287.7,3286.7,3.04255742]
[1767744148022,0.95256852,3287.7,3286.7,3.04255354]
[1767744148629,0.95256852,3287.7,3286.6,3.04263335]
[1767744148848,3.95628059,3287.6,3286.6,3.04263335]
[1767744149048,0.91454802,3287.6,3286.6,3.04263335]
[1767744149250,0.91454802,3287.6,3286.7,0.38624037]
[1767744149617,0.95256967,3287.6,3286.7,0.38624037]
[1767744150448,0.91454802,3287.6,3286.7,0.38624037]
[1767744151022,0.91454802,3287.6,3286.7,3.42872251]
[1767744151450,0.91454802,3287.6,3286.7,6.471288]
[1767744151651,0.91454802,3287.6,3286.8,0.6471288]
[1767744151950,0.0380205,3287.7,3286.9,0.94827385]
[1767744152751,0.03801934,3287.8,3286.9,0.94827385]
[1767744153126,0.03801934,3287.8,3287.0,0.94827385]
[1767744153965,3.04125204,3288.2,3287.0,0.94827385]
[1767744154180,0.03801587,3288.1,3287.2,0.94827385]
[1767744154466,0.83301356,3288.3,3287.2,0.94827385]
[1767744155439,0.795,3288.3,3287.4,0.94827385]
[1767744155636,0.795,3288.3,3287.6,0.94827385]
[1767744158132,0.0380124,3288.4,3287.7,0.94827385]
[1767744158358,0.03801356,3288.3,3287.7,0.94827385]
[1767744158932,0.002,3288.0,3287.7,0.94827385]
[1767744159132,0.002,3288.3,3287.7,0.94827385]
[1767744163977,0.61439883,3288.3,3287.7,0.94827385]
[1767744164181,0.03801471,3288.2,3287.5,0.94827385]
[1767744164381,0.03801471,3288.2,3287.6,0.94827385]
[1767744165091,0.002,3288.3,3287.6,0.94827385]
[1767744166474,0.002,3288.3,3287.7,0.94827385]
[1767744166661,0.002,3288.3,3287.9,0.94827385]
[1767744167866,0.98558533,3288.4,3287.8,0.39900053]
[1767744168078,0.98558533,3288.4,3287.6,3.04169926]
[1767744168659,0.98558533,3288.4,3287.7,0.02374899]
[1767744168892,3.04290659,3288.5,3287.7,0.02374899]
[1767744169096,0.002,3288.5,3287.8,0.94827385]
[1767744169292,0.002,3288.5,3288.0,0.94827385]
[1767744169471,3.08093146,3288.5,3288.0,0.94827385]
[1767744170207,0.04001125,3288.5,3288.0,0.94827385]
[1767744170406,0.002,3288.5,3288.0,0.94827385]
[1767744174182,0.04001125,3288.5,3288.0,0.94827385]
[1767744174401,0.002,3288.5,3288.0,0.94827385]
[1767744174581,0.04001125,3288.5,3288.0,0.94827385]
[1767744176605,0.002,3288.5,3288.1,0.94827385]
[1767744176811,3.04279583,3288.7,3287.9,0.001]
[1767744176812,6.08360225,3288.7,3287.9,0.001]
[1767744176985,0.03565452,3288.6,3287.9,0.001]
[1767744177311,3.07655117,3288.6,3287.9,0.94927385]
[1767744178185,0.03565452,3288.6,3287.9,0.94927385]
[1767744178610,0.03765452,3288.7,3287.9,0.94927385]
[1767744178810,3.07841427,3288.7,3287.9,0.94927385]
[1767744179410,3.07841427,3288.7,3288.0,0.94663236]
[1767744180226,0.002,3288.7,3288.0,0.94663236]
[1767744180399,0.002,3288.7,3288.2,0.94663236]
[1767744180918,0.9603498,3289.3,3288.1,6.14136523]
[1767744181214,0.9603498,3289.3,3288.2,0.61413652]
[1767744181516,0.9603498,3289.3,3288.4,0.95519664]
[1767744181517,0.03565452,3289.3,3288.4,0.95519664]
[1767744181818,4.80929843,3289.4,3288.4,0.95519664]
[1767744182121,1.76917143,3289.4,3288.4,0.95519664]
[1767744182322,0.793,3289.4,3288.4,0.95519664]
[1767744182520,0.793,3289.4,3288.6,0.95519664]
[1767744183012,0.03565452,3289.5,3288.6,0.95519664]
[1767744183216,0.002,3289.6,3288.8,0.95519664]
[1767744183587,0.002,3289.6,3289.0,0.95519664]
[1767744183984,0.002,3289.7,3288.8,3.9957952]
[1767744184292,0.002,3289.7,3288.9,1.43427616]
[1767744184508,0.002,3289.7,3288.9,0.47907952]
[1767744184821,0.002,3289.7,3288.9,1.27407952]
[1767744185201,0.002,3289.7,3289.0,0.95519664]
[1767744186718,0.002,3289.7,3289.1,0.95519664]
[1767744186900,0.002,3289.7,3289.3,0.95519664]
[1767744188404,0.002,3289.7,3289.1,0.795]
[1767744188797,0.002,3289.7,3289.2,0.95519664]
[1767744189516,3.0415489,3290.0,3289.2,3.04025228]
[1767744189517,0.97617143,3289.9,3289.2,3.04025228]
[1767744189707,0.002,3290.0,3289.3,3.99533363]
[1767744189913,0.002,3290.0,3289.4,0.83940665]
[1767744190304,3.03931009,3290.3,3289.9,0.01875209]
[1767744191626,0.33643889,3290.2,3289.9,0.01875209]
[1767744191797,0.03565452,3290.4,3289.9,0.97394873]
[1767744191993,6.07791892,3290.6,3289.9,0.97394873]
[1767744192226,0.03565452,3290.5,3289.9,0.97394873]
[1767744192430,0.03565452,3290.5,3289.2,7.46936717]
[1767744192431,0.33643889,3290.3,3289.3,0.95519664]
[1767744192597,0.37209341,3290.2,3288.8,3.04056285]
[1767744192796,0.37209341,3290.2,3288.6,3.07120124]
[1767744192797,6.07828834,3290.4,3289.0,0.95519664]
[1767744192999,0.33643889,3290.1,3289.1,0.17806019]
[1767744193194,0.37209341,3290.0,3289.1,0.17806019]
[1767744193438,0.37209341,3290.0,3288.9,0.795]
[1767744193601,0.37209341,3290.0,3288.9,3.83546534]
[1767744193906,0.33643889,3290.0,3289.0,3.07075686]
[1767744194517,0.33643889,3290.0,3289.1,3.04033793]
[1767744194719,3.37595535,3290.0,3289.1,3.04033793]
[1767744194920,3.37595535,3290.0,3289.2,0.30707423]
[1767744195525,0.33643889,3290.6,3289.3,0.95519664]
[1767744195832,0.03565452,3290.5,3289.5,0.95519664]
[1767744196612,3.03914229,3290.5,3289.6,0.95519664]
[1767744196917,0.03565452,3290.4,3289.6,0.95519664]
[1767744197220,0.64704843,3290.4,3289.6,1.75019664]
[1767744197525,0.002,3289.7,3289.6,1.75019664]
[1767744197730,0.33843889,3290.0,3289.6,0.795]
[1767744198624,0.002,3290.0,3289.7,0.95519664]
[1767744201342,0.03565452,3290.3,3289.7,0.95519664]
[1767744201548,0.33643889,3290.6,3289.8,0.17501966]
[1767744201715,0.03565452,3290.5,3289.6,0.795]
[1767744202144,0.37209341,3290.5,3289.6,0.795]
[1767744202609,3.41114522,3290.5,3289.6,0.795]
[1767744202846,6.45020309,3290.5,3289.6,0.795]
[1767744203143,6.41454857,3290.5,3289.6,0.795]
[1767744203730,0.03565452,3290.4,3289.7,0.95519664]
[1767744205459,6.07847308,3290.3,3289.7,0.95519664]
[1767744205617,0.03565452,3290.2,3289.7,0.95519664]
[1767744207355,0.97617143,3290.1,3288.4,3.9]
[1767744207650,10.09498961,3289.9,3288.6,0.95519664]
[1767744208345,9.11881818,3289.9,3288.6,0.95519664]
[1767744208945,6.07921212,3289.9,3288.6,0.95519664]
[1767744209129,6.07921212,3289.9,3288.7,0.95519664]
[1767744209326,6.07921212,3289.9,3288.9,0.95519664]
[1767744209530,0.03565452,3290.0,3288.9,0.95519664]
[1767744209531,6.07902734,3290.0,3289.1,0.95519664]
[1767744210165,3.03951367,3290.0,3289.9,0.001]
[1767744210450,6.07902734,3290.0,3289.1,0.95519664]
[1767744210621,6.07902734,3290.0,3289.2,1.1302163]
[1767744210943,0.002,3290.2,3289.3,0.98559824]
[1767744212047,0.002,3290.2,3289.4,0.9384974]
[1767744212229,0.002,3290.2,3289.6,0.9384974]
[1767744212745,3.041052,3290.5,3289.5,0.82539975]
[1767744213049,0.98830387,3290.4,3289.5,0.82539975]
[1767744213450,0.002,3290.5,3289.5,1.76389715]
[1767744213651,0.002,3290.5,3289.6,0.17638972]
[1767744214453,0.99030387,3290.5,3289.6,3.21622168]
[1767744214850,0.99030387,3290.5,3289.7,0.9384974]
[1767744214851,0.002,3290.5,3289.7,0.9384974]
[1767744215264,0.03765452,3290.5,3289.7,0.9384974]
[1767744215572,0.03049229,3290.5,3289.8,1.7334974]
[1767744216543,3.03914417,3290.4,3289.8,1.7334974]
[1767744217526,3.03914417,3290.4,3289.8,1.92448611]
[1767744217720,6.07718018,3291.0,3289.9,0.96889346]
[1767744218347,6.07718018,3291.0,3289.9,0.9384974]
[1767744218859,6.07681088,3291.2,3289.9,0.9384974]
[1767744219033,0.28396051,3291.1,3290.1,0.9384974]
[1767744219241,6.7670412,3291.2,3290.1,0.9384974]
[1767744219428,3.03840544,3291.2,3290.1,0.9384974]
[1767744219633,6.07685455,3291.2,3290.1,0.9384974]
[1767744219856,4.02670931,3291.2,3290.1,0.9384974]
[1767744220055,7.06515842,3291.2,3290.1,0.9384974]
[1767744220239,4.02670931,3291.2,3290.1,0.9384974]
[1767744220431,4.02670931,3291.2,3290.2,1.49480877]
[1767744220726,4.02670931,3291.2,3290.3,0.795]
[1767744221359,7.06515842,3291.2,3290.3,0.795]
[1767744221738,4.02670931,3291.2,3290.3,0.795]
[1767744221936,4.02670931,3291.2,3290.4,0.22898088]
[1767744222134,3.03840544,3291.2,3290.4,1.16747828]
[1767744222336,6.07685455,3291.2,3290.4,1.16747828]
[1767744222546,3.03840544,3291.2,3290.4,1.16747828]
[1767744222747,0.002,3290.9,3290.6,0.9384974]
[1767744224756,0.99030387,3291.2,3290.5,0.19624783]
[1767744225063,4.02680163,3291.1,3290.3,0.795]
[1767744225433,0.98830387,3291.1,3290.3,0.795]
[1767744225630,0.98830387,3291.1,3290.3,3.83422761]
[1767744226057,0.98830387,3291.1,3290.3,3.86461997]
[1767744226469,0.002,3291.2,3290.4,0.9384974]
[1767744226664,0.002,3291.2,3290.6,0.9384974]
[1767744226955,6.07881444,3291.2,3290.6,0.9384974]
[1767744227132,0.002,3291.2,3290.3,0.9384974]
[1767744227339,0.002,3291.2,3290.4,0.795]
[1767744229235,0.002,3291.2,3290.5,0.17334974]
[1767744229236,0.03249229,3291.2,3290.5,0.17334974]
[1767744229667,0.792,3291.1,3290.2,0.001]
[1767744229846,0.98830387,3290.9,3289.3,0.795]
[1767744230036,0.98830387,3290.7,3288.5,0.9689064]
[1767744230237,0.98830387,3290.5,3288.6,0.795]
[1767744230476,0.98830387,3290.2,3288.7,0.9384974]
[1767744231082,0.98830387,3290.2,3288.6,0.795]
[1767744231238,0.98830387,3290.2,3288.7,0.9384974]
[1767744231444,1.314525,3290.1,3288.8,1.11184714]
[1767744232581,6.07902734,3290.0,3288.8,1.11184714]
[1767744235172,6.07902734,3290.0,3289.1,0.001]
[1767744235377,0.98830387,3289.8,3289.1,0.001]
[1767744235684,0.98830387,3289.8,3288.1,0.9384974]
[1767744235974,0.98830387,3289.6,3288.1,0.9384974]
[1767744236174,0.98830387,3289.6,3288.0,0.795]